bitfinex-derivatives/quotes_SOLF0:USTF0_20240910
["timestamp","ask_amount","ask_price","bid_price","bid_amount"]
[1725975948260,4.1834,134.15,134.06,18.0692]
[1725975948451,2.0707,134.14,134.06,18.0692]
[1725975948653,7.495,134.13,134.06,18.0692]
[1725975948860,11.2231,134.11,134.07,3.7291]
[1725975949057,7.495,134.11,134.06,14.34]
[1725975949664,7.495,134.11,134.06,18.0692]
[1725975949665,3.7284,134.1,134.06,18.0692]
[1725975949859,3.7284,134.1,134.06,14.34]
[1725975950255,3.7284,134.1,134.05,22.94]
[1725975950566,7.495,134.11,134.05,22.94]
[1725975951165,7.495,134.11,134.07,22.94]
[1725975952159,7.495,134.11,134.1,3.7283]
[1725975952359,7.495,134.11,134.07,22.94]
[1725975952559,7.495,134.11,134.08,3.7286]
[1725975953865,11.2225,134.13,134.07,22.94]
[1725975954368,2.0707,134.14,134.07,22.94]
[1725975954369,7.495,134.11,134.09,3.7284]
[1725975954770,3.7284,134.1,134.07,22.94]
[1725975954968,7.495,134.11,134.05,22.94]
[1725975955264,3.7286,134.1,134.05,22.94]
[1725975955469,7.495,134.13,134.05,22.94]
[1725975955868,7.495,134.1,134.06,3.7294]
[1725975956470,7.495,134.1,134.07,3.7289]
[1725975957068,7.495,134.09,134.08,3.7286]
[1725975957272,7.495,134.09,134.05,22.94]
[1725975957778,7.495,134.09,134.03,29.3688]
[1725975957979,7.495,134.13,134.03,27.1897]
[1725975958175,7.495,134.13,134.03,25.1051]
[1725975958774,7.495,134.09,134.05,3.7296]
[1725975958974,7.495,134.09,134.03,25.1051]
[1725975959176,25.0107,134.14,133.98,4.2255]
[1725975959177,7.495,134.11,134.01,22.94]
[1725975959774,7.495,134.06,134.04,3.73]
[1725975960571,7.495,134.06,134.05,3.7297]
[1725975960771,7.495,134.13,134.03,22.94]
[1725975961073,25.0107,134.14,134.01,22.94]
[1725975961074,7.495,134.07,134.01,22.94]
[1725975961471,7.495,134.06,134.01,22.94]
[1725975961670,7.495,134.06,134.01,3.7307]
[1725975961872,7.495,134.04,134.01,3.7307]
[1725975962176,7.495,134.04,133.98,29.3817]
[1725975962676,7.495,134.04,134.01,22.94]
[1725975962872,7.495,134.13,134.01,22.94]
[1725975963264,7.495,134.06,134.01,22.94]
[1725975963971,7.495,134.04,134.01,26.6707]
[1725975964374,7.495,134.04,134.01,22.94]
[1725975964970,7.495,134.05,134.02,3.7303]
[1725975965270,7.495,134.05,134.01,22.94]
[1725975965867,7.495,134.04,134.01,22.94]
[1725975966268,7.495,134.04,134.03,3.73]
[1725975966980,7.495,134.05,134.03,3.73]
[1725975967582,11.2249,134.05,134.01,22.94]
[1725975967769,22.94,134.07,133.88,225.0]
[1725975967973,7.495,134.03,133.94,22.94]
[1725975968175,4.2729,134.04,133.94,22.94]
[1725975968373,4.2729,134.04,133.95,3.7323]
[1725975968579,4.2729,134.04,133.95,3.78097014]
[1725975969082,7.495,134.01,133.96,22.94]
[1725975969481,7.495,134.01,134.0,3.7311]
[1725975969881,7.495,134.01,133.99,22.94]
[1725975970182,7.495,134.02,133.99,22.94]
[1725975970687,7.495,134.02,134.01,3.7308]
[1725975971279,7.495,134.01,133.99,22.94]
[1725975971782,7.495,133.99,133.97,22.94]
[1725975972288,3.7302,134.04,134.0,3.7309]
[1725975972472,7.495,134.03,134.0,3.7309]
[1725975972677,7.495,134.03,133.98,14.33]
[1725975972879,7.495,134.02,133.99,3.7313]
[1725975973077,7.495,134.02,133.98,14.33]
[1725975974482,7.495,134.02,134.0,3.7308]
[1725975974887,7.495,134.05,134.0,3.7308]
[1725975975276,7.495,134.02,134.0,3.7308]
[1725975975482,7.495,134.02,133.99,3.7312]
[1725975975884,11.2257,134.02,133.98,18.0615]
[1725975976686,7.495,134.01,133.98,14.33]
[1725975977089,11.2265,133.99,133.96,4.1127]
[1725975977392,7.495,133.99,133.96,18.4427]
[1725975977883,7.495,133.99,133.96,14.33]
[1725975978289,7.495,134.03,133.96,18.062]
[1725975978588,7.495,133.98,133.9,4.3144]
[1725975978892,14.33,134.01,133.91,14.33]
[1725975979094,2.2454,134.0,133.91,14.33]
[1725975979392,14.33,133.99,133.9,2.0788]
[1725975979691,14.33,133.99,133.89,14.33]
[1725975979692,7.495,133.95,133.89,14.33]
[1725975980282,7.495,133.93,133.89,18.064]
[1725975981294,7.495,133.91,133.87,14.33]
[1725975981484,7.495,133.91,133.85,14.33]
[1725975981683,7.495,133.91,133.86,3.7348]
[1725975981991,7.495,133.91,133.85,14.33]
[1725975982187,7.495,133.91,133.87,3.7346]
[1725975982384,7.495,133.91,133.84,5.85124823]
[1725975982385,7.495,133.91,133.86,14.33]
[1725975982588,7.495,133.91,133.88,14.33]
[1725975982794,7.495,133.91,133.89,3.7339]
[1725975982982,7.495,133.91,133.88,14.33]
[1725975983183,7.495,133.96,133.88,14.33]
[1725975983387,11.2274,133.96,133.91,3.7336]
[1725975983778,11.2274,133.96,133.9,14.33]
[1725975983779,7.495,133.96,133.9,14.33]
[1725975984387,225.0,134.06,133.95,14.33]
[1725975984690,7.495,134.05,133.98,14.33]
[1725975984880,7.495,134.05,133.96,14.33]
[1725975985087,7.495,133.99,133.96,14.33]
[1725975985289,7.495,133.99,133.96,18.062]
[1725975985791,7.495,133.99,133.96,14.33]
[1725975986186,7.495,133.99,133.94,14.33]
[1725975986387,7.495,133.99,133.92,22.95]
[1725975987286,11.2265,133.99,133.94,3.7326]
[1725975987487,7.495,133.99,133.92,22.95]
[1725975988689,7.495,133.99,133.95,3.7324]
[1725975990490,7.495,133.98,133.95,3.7324]
[1725975990687,7.495,133.98,133.94,3.7327]
[1725975990891,7.495,133.98,133.92,22.95]
[1725975991589,7.495,134.02,133.92,22.95]
[1725975991794,7.495,133.98,133.92,25.1357]
[1725975992301,11.227,133.97,133.92,2.1857]
[1725975992788,7.495,133.97,133.92,2.1857]
[1725975992993,7.495,133.97,133.92,25.1357]
[1725975993493,7.495,133.98,133.92,25.1357]
[1725975994497,7.495,133.97,133.94,22.95]
[1725975994699,7.495,133.97,133.96,3.7321]
[1725975995196,7.495,134.02,133.98,3.7314]
[1725975995397,7.495,134.05,133.94,22.95]
[1725975995595,30.445,134.05,133.94,22.95]
[1725975995799,30.445,134.05,133.92,6.4999]
[1725975995800,7.495,133.98,133.92,29.4499]
[1725975996198,11.2268,133.98,133.94,3.7326]
[1725975997100,7.495,134.02,133.9,22.95]
[1725975997499,7.495,134.0,133.9,22.95]
[1725975997695,3.7321,133.97,133.93,3.7329]
[1725975997896,7.495,133.96,133.9,22.95]
[1725975998096,7.495,133.96,133.92,22.95]
[1725975998294,7.495,133.96,133.95,3.7325]
[1725975998507,121.00087117,134.21,133.95,3.7325]
[1725975998508,30.0,134.31,133.95,45.9]
[1725975998712,225.0,134.51,134.29,22.95]
[1725975999004,2.0938,134.67,134.3,22.95]
[1725975999005,22.95,134.43,134.3,22.95]
[1725975999205,22.95,134.38,134.06,11.1882]
[1725975999395,8.0491,134.37,134.23,22.95]
[1725975999598,4.3283,134.37,134.23,22.95]
[1725975999799,4.3283,134.37,134.26,22.95]
[1725976000198,27.2783,134.37,134.23,22.95]
[1725976000801,22.95,134.34,134.21,22.95]
[1725976001106,3.7223,134.32,134.21,22.95]
[1725976001300,2.094,134.33,134.21,22.95]
[1725976001505,3.7225,134.31,134.21,22.95]
[1725976001706,2.094,134.33,134.21,22.95]
[1725976002106,3.7228,134.3,134.21,22.95]
[1725976002901,3.7231,134.29,134.21,22.95]
[1725976003398,2.094,134.33,134.21,22.95]
[1725976003599,7.495,134.36,134.23,22.95]
[1725976003901,7.495,134.33,134.28,22.95]
[1725976004708,7.495,134.36,134.28,22.95]
[1725976004900,7.495,134.36,134.26,22.95]
[1725976005301,7.495,134.33,134.24,22.95]
[1725976005909,3.7233,134.28,134.24,22.95]
[1725976006113,7.495,134.33,134.21,22.95]
[1725976006312,3.7229,134.3,134.21,22.95]
[1725976006616,7.495,134.34,134.25,22.95]
[1725976007211,7.495,134.36,134.25,22.95]
[1725976008512,3.724,134.26,134.23,22.95]
[1725976008713,7.495,134.34,134.21,22.95]
[1725976009215,30.445,134.33,134.2,22.95]
[1725976010107,22.95,134.3,134.2,22.95]
[1725976011808,22.95,134.28,134.17,22.95]
[1725976012116,4.436,134.27,134.15,22.95]
[1725976012510,3.7258,134.2,134.15,22.95]
[1725976012914,4.436,134.27,134.15,22.95]
[1725976013118,3.7261,134.19,134.15,22.95]
[1725976013705,4.436,134.27,134.17,22.95]
[1725976014112,3.7244,134.24,134.18,3.726]
[1725976014312,4.436,134.27,134.19,22.95]
[1725976014617,3.7232,134.29,134.24,22.95]
[1725976014921,12.0105,134.34,134.24,22.95]
[1725976017017,3.724,134.26,134.21,26.6752]
[1725976017216,30.445,134.33,134.21,22.95]
[1725976017523,3.7241,134.26,134.21,3.7252]
[1725976017919,30.445,134.33,134.22,22.95]
[1725976018316,30.445,134.33,134.22,26.6748]
[1725976018517,30.445,134.33,134.22,22.95]
[1725976018821,3.7236,134.27,134.23,3.7247]
[1725976019012,30.445,134.33,134.23,3.7247]
[1725976019422,3.7235,134.28,134.23,3.7247]
[1725976019821,30.445,134.33,134.23,3.7247]
[1725976020718,3.7225,134.32,134.26,22.95]
[1725976020920,7.495,134.33,134.26,22.95]
[1725976021121,7.495,134.33,134.28,3.7232]
[1725976021427,7.495,134.33,134.28,22.95]
[1725976021624,7.495,134.33,134.31,22.95]
[1725976021822,7.495,134.33,134.29,22.95]
[1725976022025,7.495,134.33,134.26,22.95]
[1725976022329,7.495,134.39,134.27,3.7235]
[1725976022627,3.7227,134.31,134.27,3.7235]
[1725976022823,7.495,134.36,134.26,3.7239]
[1725976023023,3.723,134.3,134.24,22.95]
[1725976023425,3.7225,134.31,134.24,22.95]
[1725976023723,7.495,134.35,134.28,22.95]
[1725976023923,7.495,134.35,134.2,45.39]
[1725976023924,4.5575,134.4,134.31,22.95]
[1725976024423,4.5575,134.4,134.32,3.722]
[1725976024625,4.5575,134.4,134.31,22.95]
[1725976025026,3.7213,134.36,134.31,22.95]
[1725976025226,22.95,134.44,134.27,4.04070595]
[1725976025227,7.495,134.43,134.33,22.95]
[1725976025525,3.72,134.4,134.33,22.95]
[1725976025824,9.8567,134.43,134.33,22.95]
[1725976027033,9.8567,134.43,134.36,22.95]
[1725976027229,9.8567,134.43,134.38,3.7204]
[1725976027433,9.8567,134.43,134.36,22.95]
[1725976027625,225.0,134.51,134.33,22.95]
[1725976027626,7.495,134.48,134.38,22.95]
[1725976027825,7.495,134.47,134.39,3.72]
[1725976028023,7.495,134.47,134.38,22.95]
[1725976028335,3.7194,134.43,134.38,22.95]
[1725976028628,7.495,134.47,134.38,22.95]
[1725976028832,7.495,134.49,134.38,22.95]
[1725976029023,29.6095,134.5,134.39,3.7201]
[1725976029024,7.495,134.45,134.39,3.7201]
[1725976029626,7.495,134.43,134.39,3.7201]
[1725976029826,7.495,134.43,134.38,26.6705]
[1725976030129,7.495,134.43,134.4,22.95]
[1725976030326,22.95,134.54,134.45,3.7186]
[1725976030626,22.95,134.54,134.42,22.95]
[1725976030820,22.95,134.54,134.43,3.7191]
[1725976031129,22.95,134.54,134.42,22.95]
[1725976031424,6.6437,134.55,134.45,26.6685]
[1725976031821,6.6437,134.55,134.46,3.7181]
[1725976032229,3.7171,134.51,134.46,3.7181]
[1725976032426,3.7171,134.51,134.47,3.718]
[1725976033037,3.7171,134.51,134.46,3.7182]
[1725976033225,6.6437,134.55,134.45,22.95]
[1725976033226,7.495,134.54,134.45,22.95]
[1725976033431,30.445,134.54,134.42,22.95]
[1725976033632,7.495,134.48,134.44,3.7188]
[1725976034032,7.495,134.48,134.42,22.95]
[1725976034829,7.495,134.49,134.42,22.95]
[1725976035024,7.495,134.49,134.44,22.95]
[1725976035536,7.495,134.49,134.42,22.95]
[1725976035734,7.495,134.53,134.42,22.95]
[1725976035934,7.495,134.48,134.42,22.95]
[1725976036333,7.495,134.48,134.4,22.95]
[1725976036937,7.495,134.51,134.4,22.95]
[1725976037440,7.495,134.49,134.4,22.95]
[1725976038434,22.95,134.52,134.4,22.95]
[1725976038435,7.495,134.51,134.4,22.95]
[1725976038629,7.495,134.47,134.41,3.7195]
[1725976039131,3.7191,134.44,134.37,22.95]
[1725976039337,7.495,134.47,134.37,22.95]
[1725976039640,3.7196,134.42,134.37,3.7207]
[1725976039834,4.0837,134.46,134.35,22.95]
[1725976040035,3.7202,134.4,134.35,22.95]
[1725976040625,3.7202,134.4,134.35,26.6714]
[1725976040831,7.495,134.42,134.31,22.95]
[1725976041336,7.495,134.38,134.31,22.95]
[1725976042334,11.2159,134.37,134.31,26.6724]
[1725976042941,7.495,134.37,134.32,3.7221]
[1725976043131,7.495,134.37,134.31,22.95]
[1725976043434,11.2158,134.37,134.32,3.7221]
[1725976043634,11.2158,134.37,134.31,22.95]
[1725976043832,7.495,134.45,134.35,22.95]
[1725976044033,7.495,134.42,134.35,26.70306869]
[1725976044233,7.495,134.42,134.35,22.95]
[1725976044429,7.495,134.42,134.28,3.68493938]
[1725976044631,3.7209,134.37,134.3,22.95]
[1725976045036,3.7206,134.38,134.33,3.7217]
[1725976045237,22.95,134.41,134.3,22.95]
[1725976045636,7.495,134.4,134.3,22.95]
[1725976046342,11.2154,134.39,134.33,3.7219]
[1725976046933,11.2154,134.39,134.34,3.7216]
[1725976047437,3.7206,134.38,134.33,3.7219]
[1725976048238,7.495,134.36,134.32,3.7221]
[1725976048541,7.495,134.36,134.27,22.95]
[1725976048736,7.495,134.32,134.25,22.95]
[1725976049137,7.495,134.32,134.25,26.65216139]
[1725976049339,7.495,134.32,134.27,22.95]
[1725976049942,7.495,134.36,134.27,22.95]
[1725976050241,7.495,134.36,134.29,22.95]
[1725976050444,7.495,134.36,134.33,3.7217]
[1725976050644,7.495,134.36,134.29,22.95]
[1725976050945,7.495,134.37,134.29,22.95]
[1725976051342,11.2158,134.37,134.29,22.95]
[1725976051640,11.2158,134.37,134.33,3.7217]
[1725976051850,7.495,134.37,134.29,22.95]
[1725976052144,7.495,134.37,134.33,3.7217]
[1725976052939,7.495,134.36,134.29,22.95]
[1725976053141,7.495,134.36,134.31,22.95]
[1725976053344,4.0917,134.4,134.33,22.95]
[1725976053647,11.2154,134.39,134.35,3.7214]
[1725976053849,7.495,134.39,134.33,22.95]
[1725976054045,7.495,134.37,134.33,22.95]
[1725976055344,7.495,134.37,134.31,22.95]
[1725976056346,7.495,134.35,134.31,22.95]
[1725976056749,7.495,134.35,134.33,3.7219]
[1725976056948,7.495,134.35,134.31,22.95]
[1725976057342,7.495,134.36,134.33,3.7218]
[1725976057550,7.495,134.36,134.33,22.95]
[1725976057743,247.95,134.46,134.35,26.6714]
[1725976057951,13.5827,134.45,134.37,22.95]
[1725976058149,17.3014,134.45,134.37,22.95]
[1725976058343,6.0877,134.45,134.37,22.95]
[1725976058747,6.0877,134.45,134.35,22.95]
[1725976058947,7.495,134.44,134.38,3.7205]
[1725976059148,3.7196,134.42,134.38,3.7205]
[1725976059347,11.2146,134.42,134.35,22.95]
[1725976059547,7.495,134.42,134.39,3.7203]
[1725976060046,7.495,134.42,134.39,3.72]
[1725976060245,7.495,134.42,134.37,22.95]
[1725976060441,7.495,134.44,134.37,22.95]
[1725976060644,7.495,134.44,134.4,3.7198]
[1725976060844,11.214,134.44,134.4,3.7198]
[1725976061452,7.495,134.44,134.4,22.95]
[1725976062154,7.495,134.46,134.4,22.95]
[1725976062649,7.495,134.44,134.4,22.95]
[1725976063056,7.495,134.44,134.37,22.95]
[1725976063655,7.495,134.46,134.37,22.95]
[1725976063861,3.7192,134.43,134.39,3.7202]
[1725976064056,7.495,134.42,134.39,3.7202]
[1725976064355,7.495,134.42,134.35,22.95]
[1725976064555,3.7202,134.4,134.36,3.721]
[1725976064856,7.495,134.42,134.35,22.95]
[1725976065450,3.7201,134.4,134.37,3.7208]
[1725976065851,7.495,134.42,134.35,22.95]
[1725976066059,7.495,134.42,134.39,3.7201]
[1725976066759,11.2146,134.42,134.39,3.7201]
[1725976067057,7.495,134.46,134.4,3.72]
[1725976067253,7.495,134.44,134.37,22.95]
[1725976067653,11.2142,134.43,134.37,22.95]
[1725976067856,7.495,134.43,134.37,22.95]
[1725976068954,11.2146,134.42,134.39,3.7201]
[1725976069150,7.495,134.42,134.39,3.7201]
[1725976069356,7.495,134.42,134.35,22.95]
[1725976069551,3.7204,134.39,134.33,22.95]
[1725976069955,1.9929,134.41,134.33,22.95]
[1725976070563,3.7204,134.39,134.35,3.7213]
[1725976070761,1.9929,134.41,134.24,7.4486]
[1725976070958,7.495,134.39,134.3,22.95]
[1725976071158,7.495,134.36,134.3,22.95]
[1725976071970,7.495,134.36,134.33,3.7218]
[1725976072862,7.495,134.35,134.32,26.6721]
[1725976073464,7.495,134.33,134.26,22.95]
[1725976073660,7.495,134.33,134.25,22.95]
[1725976074064,3.7223,134.32,134.28,3.7232]
[1725976074660,3.7219,134.34,134.29,3.723]
[1725976074962,7.495,134.33,134.29,3.723]
[1725976075767,11.2171,134.33,134.29,3.723]
[1725976075967,7.495,134.36,134.28,3.7232]
[1725976076169,7.495,134.36,134.25,22.95]
[1725976076775,7.495,134.33,134.23,22.95]
[1725976076972,7.495,134.31,134.23,22.95]
[1725976077171,4.1935,134.32,134.25,3.724]
[1725976077172,7.495,134.29,134.25,3.724]
[1725976077368,7.495,134.29,134.23,22.95]
[1725976077772,7.495,134.29,134.26,3.7236]
[1725976078164,7.495,134.31,134.23,22.95]
[1725976078370,7.495,134.29,134.26,3.7238]
[1725976078774,7.495,134.29,134.23,22.95]
[1725976078973,7.495,134.29,134.27,3.7236]
[1725976079369,7.495,134.31,134.27,3.7236]
[1725976079574,7.495,134.31,134.23,22.95]
[1725976079775,7.495,134.29,134.26,3.7238]
[1725976080174,7.495,134.29,134.23,22.95]
[1725976080378,7.495,134.29,134.26,3.7237]
[1725976080774,7.495,134.28,134.2,22.95]
[1725976080968,7.495,134.26,134.23,3.7246]
[1725976081377,7.495,134.26,134.2,22.95]
[1725976081579,11.219,134.26,134.22,3.7248]
[1725976081779,7.495,134.26,134.2,22.95]
[1725976081973,7.495,134.27,134.23,3.7246]
[1725976082175,7.495,134.27,134.2,22.95]
[1725976082481,11.2186,134.27,134.2,22.95]
[1725976082673,7.495,134.27,134.2,22.95]
[1725976083068,11.2193,134.25,134.2,22.95]
[1725976083271,7.495,134.25,134.2,22.95]
[1725976084184,7.495,134.27,134.24,3.7242]
[1725976084681,11.2188,134.27,134.24,3.7242]
[1725976084883,7.495,134.27,134.25,3.7242]
[1725976085080,7.495,134.27,134.22,22.95]
[1725976085281,7.495,134.28,134.22,22.95]
[1725976085484,7.495,134.28,134.24,3.7242]
[1725976085875,7.495,134.26,134.2,22.95]
[1725976086080,7.495,134.26,134.23,3.7247]
[1725976086876,7.495,134.28,134.23,3.7247]
[1725976087578,7.495,134.26,134.23,3.7247]
[1725976087985,7.495,134.26,134.2,22.95]
[1725976087986,11.2191,134.26,134.22,3.7249]
[1725976088184,7.495,134.26,134.2,22.95]
[1725976088481,3.7246,134.24,134.2,3.7255]
[1725976089179,3.7248,134.23,134.2,3.7255]
[1725976089374,3.7248,134.23,134.19,3.7257]
[1725976089981,3.7248,134.23,134.2,3.7255]
[1725976090779,3.725,134.22,134.17,22.95]
[1725976091089,7.495,134.23,134.15,22.95]
[1725976091289,11.2205,134.21,134.17,3.7262]
[1725976091988,11.2205,134.21,134.16,3.7266]
[1725976091989,3.7257,134.2,134.16,3.7266]
[1725976092487,7.495,134.19,134.13,22.95]
[1725976092783,11.6466,134.18,134.1,22.95]
[1725976093086,3.7273,134.14,134.11,3.7279]
[1725976093293,11.2223,134.14,134.11,3.7279]
[1725976093588,7.495,134.14,134.11,3.7279]
[1725976093787,7.495,134.14,134.12,3.7277]
[1725976093981,7.495,134.14,134.1,22.95]
[1725976094182,7.495,134.16,134.1,22.95]
[1725976094378,7.495,134.16,134.08,22.95]
[1725976094585,3.7277,134.13,134.08,22.95]
[1725976094790,2.1255,134.17,134.08,22.95]
[1725976094980,7.495,134.16,134.06,22.95]
[1725976095181,7.495,134.14,134.08,22.95]
[1725976095583,7.495,134.16,134.08,22.95]
[1725976096186,7.495,134.16,134.12,3.7275]
[1725976096392,7.495,134.16,134.08,22.95]
[1725976096583,7.495,134.16,134.06,22.95]
[1725976096779,3.7277,134.13,134.06,22.95]
[1725976097023,11.2227,134.13,134.06,22.95]
[1725976097384,11.2227,134.13,134.09,3.7284]
[1725976097586,3.7278,134.12,134.06,22.95]
[1725976097890,3.7278,134.12,134.08,3.7287]
[1725976098089,3.993,134.11,134.06,22.95]
[1725976098487,3.993,134.11,134.09,3.7284]
[1725976098789,7.495,134.13,134.06,22.95]
[1725976099189,7.495,134.13,134.1,3.7282]
[1725976099386,7.495,134.15,134.06,22.95]
[1725976099788,7.495,134.13,134.06,22.95]
[1725976100292,11.2226,134.13,134.09,3.7286]
[1725976100493,7.495,134.13,134.09,3.7286]
[1725976100792,11.2227,134.13,134.09,3.7286]
[1725976101389,7.495,134.13,134.1,3.7281]
[1725976101889,7.495,134.15,134.1,3.7281]
[1725976102092,7.495,134.13,134.1,3.7281]
[1725976102689,7.495,134.13,134.06,22.95]
[1725976102893,7.495,134.13,134.04,22.95]
[1725976103096,3.7281,134.11,134.07,3.7291]
[1725976103294,7.495,134.15,134.07,3.7291]
[1725976103691,22.95,134.14,134.04,22.95]
[1725976103897,7.495,134.07,134.02,22.95]
[1725976104098,7.495,134.07,134.0,26.60152976]
[1725976104296,7.495,134.07,134.0,22.95]
[1725976104503,6.265,134.06,134.0,22.95]
[1725976104890,6.265,134.06,133.97,3.7318]
[1725976105199,6.265,134.06,133.94,22.95]
[1725976105200,30.445,134.05,133.94,22.95]
[1725976105591,7.495,133.99,133.96,3.7322]
[1725976105894,7.495,133.99,133.94,22.95]
[1725976106693,7.495,134.02,133.98,3.7315]
[1725976106889,7.495,134.02,133.94,22.95]
[1725976107296,7.495,134.0,133.96,3.7321]
[1725976107603,7.495,134.0,133.94,22.95]
[1725976107793,7.495,133.98,133.95,3.7324]
[1725976108905,7.495,133.98,133.96,3.7322]
[1725976109490,7.495,133.98,133.95,3.7325]
[1725976110597,7.495,133.98,133.94,3.7327]
[1725976110897,7.495,133.98,133.89,22.95]
[1725976110898,9.5562,133.98,133.89,22.95]
[1725976111090,3.7323,133.96,133.93,3.7329]
[1725976111294,9.5562,133.98,133.89,22.95]
[1725976111699,3.7324,133.96,133.89,22.95]
[1725976111902,9.5562,133.98,133.89,22.95]
[1725976112698,9.5562,133.98,133.91,22.95]
[1725976113103,9.5562,133.98,133.91,26.71148233]
[1725976113298,9.5562,133.98,133.91,22.95]
[1725976113706,9.5562,133.98,133.93,3.733]
[1725976114104,9.5562,133.98,133.91,22.95]
[1725976114297,3.7322,133.96,133.93,3.7329]
[1725976114804,9.5562,133.98,133.91,22.95]
[1725976115008,7.495,133.98,133.93,22.95]
[1725976115407,7.495,133.98,133.91,22.95]
[1725976116104,3.7323,133.96,133.93,3.733]
[1725976116407,7.495,133.98,133.89,22.95]
[1725976116609,2.1016,133.97,133.89,22.95]
[1725976116807,2.1016,133.97,133.91,22.95]
[1725976117499,7.495,133.98,133.91,22.95]
[1725976117812,3.732,133.97,133.94,3.7326]
[1725976118308,3.732,133.97,133.91,22.95]
[1725976118510,11.2268,133.98,133.91,22.95]
[1725976119209,7.495,133.98,133.91,22.95]
[1725976119806,11.2267,133.98,133.95,3.7324]
[1725976120201,7.495,133.98,133.91,22.95]
[1725976120399,3.7321,133.97,133.94,3.7326]
[1725976120804,11.2268,133.98,133.94,3.7326]
[1725976121003,7.495,133.98,133.91,22.95]
[1725976121406,3.7324,133.96,133.93,3.7329]
[1725976121713,3.7324,133.96,133.89,22.95]
[1725976121910,3.7325,133.95,133.92,3.7332]
[1725976122111,3.7325,133.95,133.9,14.35]
[1725976122805,7.495,133.98,133.9,14.35]
[1725976123511,3.7324,133.96,133.9,14.35]
[1725976124116,3.7324,133.96,133.89,22.96]
[1725976124411,7.495,133.98,133.89,22.96]
[1725976125415,3.7324,133.96,133.89,22.96]
[1725976126316,3.7326,133.95,133.89,22.96]
[1725976126516,7.495,133.98,133.93,3.7328]
[1725976127017,7.495,133.98,133.94,3.7328]
[1725976127311,7.495,133.98,133.9,3.82066502]
[1725976127721,7.495,133.98,133.93,3.7328]
[1725976127917,7.495,133.98,133.9,3.82066502]
[1725976128220,3.7321,133.97,133.93,3.7329]
[1725976128416,7.495,133.98,133.89,22.96]
[1725976128622,11.2269,133.98,133.94,3.7326]